fUSD/lending_fUSD_20260504
["ID","MTS","AMOUNT","RATE_DAILY","PERIOD"]
[421548082,1777856223000,-1419.83195923,0.00014622,2]
[421548084,1777856223000,-200.0,0.00014682,2]
[421548081,1777856223000,-500.0,0.00014621,2]
[421548080,1777856223000,-1419.83195923,0.00014618,2]
[421548083,1777856223000,-151.88198565,0.00014658,2]
[421548085,1777856223000,-5324.52822202,0.000147,2]
[421548097,1777856223000,-1228.81146891,0.00015,2]
[421548089,1777856223000,-150.0,0.00014986,2]
[421548091,1777856223000,-150.0,0.00014986,2]
[421548098,1777856223000,-324764.99905115,0.00015,2]
[421548086,1777856223000,-164.61543,0.00014802,2]
[421548088,1777856223000,-700.0,0.000149,5]
[421548090,1777856223000,-150.0,0.00014986,2]
[421548099,1777856223000,-150.0,0.00015,2]
[421548105,1777856223000,-151.0,0.00015,2]
[421548092,1777856223000,-150.0,0.00014986,2]
[421548165,1777856224000,-500.0,0.0001589,2]
[421548163,1777856224000,-11502.91608848,0.00015872,2]
[421548161,1777856224000,-426.46099227,0.0001567,3]
[421548162,1777856224000,-599.60298507,0.00015709,2]
[421548158,1777856224000,-4404.13799565,0.00015647,2]
[421548156,1777856224000,-517.0,0.00015643,5]
[421548159,1777856224000,-1419.83195923,0.00015663,2]
[421548157,1777856224000,-1419.83195923,0.00015643,2]
[421548153,1777856224000,-250.0,0.00015616,2]
[421548155,1777856224000,-1593.83894353,0.00015634,2]
[421548169,1777856224000,-5000.0,0.0001596,2]
[421548160,1777856224000,-1419.83195923,0.0001567,2]
[421548174,1777856224000,-8142.62,0.00016116,2]
[421548178,1777856224000,-276.0,0.0001629,2]
[421548176,1777856224000,-183.58,0.00016197,2]
[421548170,1777856224000,-300.0,0.00016,2]
[421548173,1777856224000,-727.0,0.00016026,2]
[421548167,1777856224000,-500.0,0.0001589,2]
[421548166,1777856224000,-500.0,0.0001589,2]
[421548175,1777856224000,-350.0,0.00016164,2]
[421548168,1777856224000,-500.0,0.0001589,2]
[421548189,1777856224000,-500.0,0.00016438,2]
[421548172,1777856224000,-200.0,0.00016,2]
[421548181,1777856224000,-200.0,0.0001634,2]
[421548188,1777856224000,-500.0,0.00016438,2]
[421548164,1777856224000,-500.0,0.0001589,2]
[421548171,1777856224000,-150.0,0.00016,2]
[421548154,1777856224000,-1419.83195923,0.00015625,2]
[421548125,1777856224000,-152.0,0.0001501,7]
[421548148,1777856224000,-1419.83195923,0.00015593,2]
[421548177,1777856224000,-176.0,0.0001629,2]
[421548124,1777856224000,-164.61544,0.00015002,2]
[421548127,1777856224000,-152.0,0.0001501,7]
[421548126,1777856224000,-152.0,0.0001501,7]
[421548129,1777856224000,-152.0,0.00015025,7]
[421548141,1777856224000,-499.99,0.0001531,2]
[421548130,1777856224000,-152.0,0.00015025,7]
[421548131,1777856224000,-155.0,0.00015068,2]
[421548133,1777856224000,-150.0,0.00015068,2]
[421548135,1777856224000,-168.78,0.00015219,2]
[421548134,1777856224000,-164.61543,0.00015202,2]
[421548136,1777856224000,-168.78,0.00015219,2]
[421548152,1777856224000,-621.15684045,0.00015608,2]
[421548138,1777856224000,-150.99,0.0001531,2]
[421548140,1777856224000,-4425.51,0.0001531,2]
[421548132,1777856224000,-900.0,0.00015068,2]
[421548137,1777856224000,-1517.64,0.000153,2]
[421548143,1777856224000,-514.15685655,0.000154,2]
[421548142,1777856224000,-2359.16859906,0.00015364,2]
[421548144,1777856224000,-1235.25453434,0.000155,2]
[421548145,1777856224000,-1349.20567231,0.00015505,2]
[421548147,1777856224000,-572.01976349,0.0001558,2]
[421548149,1777856224000,-1419.83195923,0.00015602,2]
[421548151,1777856224000,-1419.83195923,0.00015606,2]
[421548150,1777856224000,-1419.83195923,0.00015605,2]
[421548146,1777856224000,-1419.83195923,0.00015579,2]
[421548139,1777856224000,-9999.99,0.0001531,2]
[421548186,1777856224000,-299.41060724,0.00016438,2]
[421548128,1777856224000,-152.0,0.00015025,7]
[421548184,1777856224000,-2500.0,0.00016438,2]
[421548218,1777856224000,-151.0,0.00016438,2]
[421548216,1777856224000,-151.0,0.00016438,2]
[421548224,1777856224000,-151.0,0.00016438,2]
[421548226,1777856224000,-151.0,0.00016438,2]
[421548219,1777856224000,-151.0,0.00016438,2]
[421548221,1777856224000,-151.0,0.00016438,2]
[421548217,1777856224000,-151.0,0.00016438,2]
[421548220,1777856224000,-151.0,0.00016438,2]
[421548223,1777856224000,-151.0,0.00016438,2]
[421548225,1777856224000,-151.0,0.00016438,2]
[421548222,1777856224000,-151.0,0.00016438,2]
[421548238,1777856224000,-900.0,0.00016438,2]
[421548215,1777856224000,-151.0,0.00016438,2]
[421548227,1777856224000,-151.0,0.00016438,2]
[421548229,1777856224000,-151.0,0.00016438,2]
[421548231,1777856224000,-151.0,0.00016438,2]
[421548232,1777856224000,-151.0,0.00016438,2]
[421548233,1777856224000,-151.0,0.00016438,2]
[421548235,1777856224000,-151.0,0.00016438,2]
[421548236,1777856224000,-151.0,0.00016438,2]
[421548234,1777856224000,-151.0,0.00016438,2]
[421548237,1777856224000,-183.290217,0.00016438,2]
[421548239,1777856224000,-5233.573485,0.00016438,2]
[421548241,1777856224000,-5233.573485,0.00016438,2]
[421548240,1777856224000,-5233.573485,0.00016438,2]
[421548182,1777856224000,-341.73667494,0.00016438,2]
[421548230,1777856224000,-151.0,0.00016438,2]
[421548213,1777856224000,-151.0,0.00016438,2]
[421548228,1777856224000,-151.0,0.00016438,2]
[421548212,1777856224000,-151.0,0.00016438,2]
[421548211,1777856224000,-151.0,0.00016438,2]
[421548183,1777856224000,-2323.3,0.00016438,2]
[421548180,1777856224000,-1149.0,0.0001629,2]
[421548185,1777856224000,-383.73380595,0.00016438,2]
[421548187,1777856224000,-500.0,0.00016438,2]
[421548190,1777856224000,-150.0,0.00016438,2]
[421548197,1777856224000,-500.0,0.00016438,2]
[421548202,1777856224000,-151.0,0.00016438,2]
[421548193,1777856224000,-500.0,0.00016438,2]
[421548194,1777856224000,-500.0,0.00016438,2]
[421548191,1777856224000,-500.0,0.00016438,2]
[421548200,1777856224000,-151.0,0.00016438,2]
[421548199,1777856224000,-151.0,0.00016438,2]
[421548198,1777856224000,-500.0,0.00016438,2]
[421548206,1777856224000,-151.0,0.00016438,2]
[421548209,1777856224000,-151.0,0.00016438,2]
[421548192,1777856224000,-500.0,0.00016438,2]
[421548207,1777856224000,-151.0,0.00016438,2]
[421548205,1777856224000,-151.0,0.00016438,2]
[421548210,1777856224000,-151.0,0.00016438,2]
[421548208,1777856224000,-151.0,0.00016438,2]
[421548179,1777856224000,-167.0,0.0001629,2]
[421548214,1777856224000,-151.0,0.00016438,2]
[421548204,1777856224000,-151.0,0.00016438,2]
[421548196,1777856224000,-500.0,0.00016438,2]
[421548195,1777856224000,-500.0,0.00016438,2]
[421548201,1777856224000,-151.0,0.00016438,2]
[421548203,1777856224000,-151.0,0.00016438,2]
[421548278,1777856225000,-500.0,0.00016438,2]
[421548280,1777856225000,-500.0,0.00016438,2]
[421548277,1777856225000,-500.0,0.00016438,2]
[421548285,1777856225000,-235.0,0.00016438,2]
[421548275,1777856225000,-169.22701597,0.00016438,2]
[421548284,1777856225000,-520.37032392,0.00016438,2]
[421548273,1777856225000,-410.05174295,0.00016438,2]
[421548283,1777856225000,-500.0,0.00016438,2]
[421548282,1777856225000,-500.0,0.00016438,2]
[421548281,1777856225000,-500.0,0.00016438,2]
[421548276,1777856225000,-500.0,0.00016438,2]
[421548274,1777856225000,-500.0,0.00016438,2]
[421548300,1777856225000,-1043.03192747,0.00016986,2]
[421548286,1777856225000,-153.0,0.00016438,2]
[421548289,1777856225000,-153.0,0.00016438,2]
[421548291,1777856225000,-500.0,0.00016538,2]
[421548287,1777856225000,-153.0,0.00016438,2]
[421548296,1777856225000,-199.25,0.00016712,2]
[421548288,1777856225000,-153.0,0.00016438,2]
[421548290,1777856225000,-2160.3112013,0.000165,2]
[421548292,1777856225000,-1349.20567231,0.00016539,2]
[421548295,1777856225000,-1349.20567231,0.00016678,2]
[421548297,1777856225000,-450.0,0.00016712,2]
[421548294,1777856225000,-500.0,0.00016615,2]
[421548293,1777856225000,-1349.20567231,0.00016559,2]
[421548272,1777856225000,-500.0,0.00016438,2]
[421548279,1777856225000,-211.6301655,0.00016438,2]
[421548270,1777856225000,-500.0,0.00016438,2]
[421548242,1777856225000,-5233.573485,0.00016438,2]
[421548271,1777856225000,-500.0,0.00016438,2]
[421548301,1777856225000,-1000.0,0.00016986,2]
[421548245,1777856225000,-5233.573485,0.00016438,2]
[421548243,1777856225000,-5233.573485,0.00016438,2]
[421548244,1777856225000,-5233.573485,0.00016438,2]
[421548249,1777856225000,-158.374888,0.00016438,2]
[421548248,1777856225000,-158.374888,0.00016438,2]
[421548246,1777856225000,-5233.573485,0.00016438,2]
[421548247,1777856225000,-153.450184,0.00016438,2]
[421548250,1777856225000,-158.374888,0.00016438,2]
[421548252,1777856225000,-158.374888,0.00016438,2]
[421548253,1777856225000,-158.374888,0.00016438,2]
[421548256,1777856225000,-500.0,0.00016438,2]
[421548269,1777856225000,-191.95038192,0.00016438,2]
[421548255,1777856225000,-158.374888,0.00016438,2]
[421548251,1777856225000,-158.374888,0.00016438,2]
[421548262,1777856225000,-340.920656,0.00016438,2]
[421548254,1777856225000,-158.374888,0.00016438,2]
[421548260,1777856225000,-500.0,0.00016438,2]
[421548261,1777856225000,-500.0,0.00016438,2]
[421548259,1777856225000,-500.0,0.00016438,2]
[421548263,1777856225000,-500.0,0.00016438,2]
[421548264,1777856225000,-500.0,0.00016438,2]
[421548267,1777856225000,-500.0,0.00016438,2]
[421548265,1777856225000,-500.0,0.00016438,2]
[421548266,1777856225000,-500.0,0.00016438,2]
[421548268,1777856225000,-500.0,0.00016438,2]
[421548258,1777856225000,-500.0,0.00016438,2]
[421548299,1777856225000,-151.0,0.00016866,2]
[421548257,1777856225000,-500.0,0.00016438,2]
[421548303,1777856225000,-150.0,0.00016986,2]
[421548328,1777856225000,-1000.0,0.00016986,2]
[421548344,1777856225000,-250.0,0.00017251,2]
[421548336,1777856225000,-226.0,0.00017148,2]
[421548345,1777856225000,-250.0,0.00017251,2]
[421548346,1777856225000,-248.0,0.00017251,2]
[421548338,1777856225000,-250.0,0.00017251,2]
[421548337,1777856225000,-250.0,0.00017251,2]
[421548339,1777856225000,-250.0,0.00017251,2]
[421548340,1777856225000,-250.0,0.00017251,2]
[421548341,1777856225000,-250.0,0.00017251,2]
[421548343,1777856225000,-250.0,0.00017251,2]
[421548335,1777856225000,-246.0,0.00017148,2]
[421548325,1777856225000,-1000.0,0.00016986,2]
[421548342,1777856225000,-250.0,0.00017251,2]
[421548347,1777856225000,-550.0,0.0001726,2]
[421548349,1777856225000,-276.0,0.0001729,2]
[421548350,1777856225000,-1149.0,0.0001729,2]
[421548351,1777856225000,-3534.0,0.00017323,2]
[421548352,1777856225000,-623.0,0.00017323,2]
[421548354,1777856225000,-1214.0,0.00017323,2]
[421548353,1777856225000,-1351.0,0.00017323,2]
[421548357,1777856225000,-150.0,0.00017343,2]
[421548355,1777856225000,-928.0,0.00017323,2]
[421548356,1777856225000,-416.0,0.00017323,2]
[421548358,1777856225000,-158.374888,0.00017534,2]
[421548298,1777856225000,-1349.20567231,0.00016768,2]
[421548348,1777856225000,-176.0,0.0001729,2]
[421548330,1777856225000,-1000.0,0.00016986,2]
[421548359,1777856225000,-158.374888,0.00017534,2]
[421548332,1777856225000,-298.5797023,0.00016986,2]
[421548302,1777856225000,-1000.0,0.00016986,2]
[421548305,1777856225000,-1000.0,0.00016986,2]
[421548304,1777856225000,-1000.0,0.00016986,2]
[421548306,1777856225000,-872.10734053,0.00016986,2]
[421548307,1777856225000,-1000.0,0.00016986,2]
[421548308,1777856225000,-1000.0,0.00016986,2]
[421548309,1777856225000,-1000.0,0.00016986,2]
[421548310,1777856225000,-1000.0,0.00016986,2]
[421548334,1777856225000,-1069.2469534,0.00016986,2]
[421548312,1777856225000,-1000.0,0.00016986,2]
[421548313,1777856225000,-1000.0,0.00016986,2]
[421548314,1777856225000,-1000.0,0.00016986,2]
[421548316,1777856225000,-1000.0,0.00016986,2]
[421548311,1777856225000,-1000.0,0.00016986,2]
[421548319,1777856225000,-1000.0,0.00016986,2]
[421548333,1777856225000,-1000.0,0.00016986,2]
[421548315,1777856225000,-1000.0,0.00016986,2]
[421548327,1777856225000,-425.87850548,0.00016986,2]
[421548326,1777856225000,-1000.0,0.00016986,2]
[421548324,1777856225000,-1000.0,0.00016986,2]
[421548331,1777856225000,-1000.0,0.00016986,2]
[421548323,1777856225000,-1000.0,0.00016986,2]
[421548322,1777856225000,-1000.0,0.00016986,2]
[421548321,1777856225000,-1000.0,0.00016986,2]
[421548320,1777856225000,-1000.0,0.00016986,2]
[421548318,1777856225000,-1000.0,0.00016986,2]
[421548317,1777856225000,-1000.0,0.00016986,2]
[421548329,1777856225000,-1001.37874533,0.00016986,2]
[421548399,1777856226000,-1082.89488471,0.0001789,2]
[421548400,1777856226000,-1204.06996549,0.00018,2]
[421548393,1777856226000,-155.0,0.0001758,2]
[421548395,1777856226000,-790.95334146,0.000177,2]
[421548394,1777856226000,-694.66,0.000176,2]
[421548392,1777856226000,-7092.17093066,0.00017556,2]
[421548391,1777856226000,-1500.0,0.00017534,2]
[421548389,1777856226000,-308.91130432,0.00017534,2]
[421548390,1777856226000,-1500.0,0.00017534,2]
[421548397,1777856226000,-1012.82909366,0.0001786,2]
[421548396,1777856226000,-650.0,0.00017808,2]
[421548412,1777856226000,-5233.573485,0.00018082,2]
[421548401,1777856226000,-350.0,0.00018,2]
[421548406,1777856226000,-609.784095,0.00018082,2]
[421548413,1777856226000,-5233.573485,0.00018082,2]
[421548402,1777856226000,-200.0,0.00018,2]
[421548407,1777856226000,-609.784095,0.00018082,2]
[421548405,1777856226000,-179.714701,0.00018082,2]
[421548411,1777856226000,-5233.573485,0.00018082,2]
[421548404,1777856226000,-151.0,0.00018082,2]
[421548403,1777856226000,-151.0,0.00018082,2]
[421548410,1777856226000,-5233.573485,0.00018082,2]
[421548388,1777856226000,-1191.08869568,0.00017534,2]
[421548398,1777856226000,-1235.79289635,0.0001789,2]
[421548385,1777856226000,-1500.0,0.00017534,2]
[421548376,1777856226000,-1500.0,0.00017534,2]
[421548387,1777856226000,-1500.0,0.00017534,2]
[421548408,1777856226000,-609.784095,0.00018082,2]
[421548369,1777856226000,-1500.0,0.00017534,2]
[421548367,1777856226000,-150.0,0.00017534,2]
[421548368,1777856226000,-1500.0,0.00017534,2]
[421548360,1777856226000,-158.374888,0.00017534,2]
[421548363,1777856226000,-1500.0,0.00017534,2]
[421548364,1777856226000,-1500.0,0.00017534,2]
[421548361,1777856226000,-158.374888,0.00017534,2]
[421548362,1777856226000,-1500.0,0.00017534,2]
[421548366,1777856226000,-1242.24681601,0.00017534,2]
[421548365,1777856226000,-1500.0,0.00017534,2]
[421548371,1777856226000,-1500.0,0.00017534,2]
[421548370,1777856226000,-256.95561853,0.00017534,2]
[421548377,1777856226000,-1500.0,0.00017534,2]
[421548375,1777856226000,-1500.0,0.00017534,2]
[421548381,1777856226000,-569.68684904,0.00017534,2]
[421548378,1777856226000,-1500.0,0.00017534,2]
[421548374,1777856226000,-1500.0,0.00017534,2]
[421548373,1777856226000,-1500.0,0.00017534,2]
[421548372,1777856226000,-752.34389289,0.00017534,2]
[421548379,1777856226000,-1500.0,0.00017534,2]
[421548380,1777856226000,-1574.00958066,0.00017534,2]
[421548382,1777856226000,-1500.0,0.00017534,2]
[421548383,1777856226000,-1500.0,0.00017534,2]
[421548384,1777856226000,-1165.89203555,0.00017534,2]
[421548386,1777856226000,-1500.0,0.00017534,2]
[421548409,1777856226000,-609.784095,0.00018082,2]
[421548419,1777856226000,-2000.0,0.00018082,2]
[421548414,1777856226000,-2000.0,0.00018082,2]
[421548443,1777856226000,-750.0,0.00018356,2]
[421548439,1777856226000,-226.0,0.00018148,2]
[421548440,1777856226000,-176.0,0.0001829,2]
[421548448,1777856226000,-1497.1679168,0.000185,2]
[421548451,1777856226000,-2500.0,0.0001863,2]
[421548450,1777856226000,-498.30887234,0.0001863,2]
[421548449,1777856226000,-1497.1679168,0.000186,2]
[421548456,1777856226000,-1793.31562333,0.0001863,2]
[421548453,1777856226000,-2500.0,0.0001863,2]
[421548452,1777856226000,-2500.0,0.0001863,2]
[421548455,1777856226000,-2000.0,0.0001863,2]
[421548438,1777856226000,-246.0,0.00018148,2]
[421548454,1777856226000,-2500.0,0.0001863,2]
[421548457,1777856226000,-2500.0,0.0001863,2]
[421548458,1777856226000,-212.10090907,0.0001863,2]
[421548460,1777856226000,-199.65652669,0.0001863,2]
[421548415,1777856226000,-2000.0,0.00018082,2]
[421548464,1777856226000,-1630.15376667,0.0001863,2]
[421548463,1777856226000,-2500.0,0.0001863,2]
[421548461,1777856226000,-1905.1831353,0.0001863,2]
[421548468,1777856226000,-850.0,0.00018904,2]
[421548466,1777856226000,-1111.476669,0.0001863,2]
[421548467,1777856226000,-1497.1679168,0.000188,2]
[421548465,1777856226000,-2500.0,0.0001863,2]
[421548459,1777856226000,-320.50759172,0.0001863,2]
[421548442,1777856226000,-1149.0,0.0001829,2]
[421548462,1777856226000,-2500.0,0.0001863,2]
[421548441,1777856226000,-276.0,0.0001829,2]
[421548444,1777856226000,-2323.3,0.0001841,2]
[421548416,1777856226000,-175.49090738,0.00018082,2]
[421548422,1777856226000,-401.26904103,0.00018082,2]
[421548417,1777856226000,-1534.32554608,0.00018082,2]
[421548418,1777856226000,-1094.67827711,0.00018082,2]
[421548424,1777856226000,-2000.0,0.00018082,2]
[421548421,1777856226000,-2000.0,0.00018082,2]
[421548423,1777856226000,-2000.0,0.00018082,2]
[421548430,1777856226000,-2000.0,0.00018082,2]
[421548428,1777856226000,-2000.0,0.00018082,2]
[421548426,1777856226000,-2000.0,0.00018082,2]
[421548427,1777856226000,-1709.54455606,0.00018082,2]
[421548420,1777856226000,-2025.28913747,0.00018082,2]
[421548429,1777856226000,-2000.0,0.00018082,2]
[421548436,1777856226000,-2000.0,0.00018082,2]
[421548425,1777856226000,-2000.0,0.00018082,2]
[421548447,1777856226000,-160.0,0.00018473,2]
[421548445,1777856226000,-621.78829552,0.00018448,2]
[421548437,1777856226000,-1797.13654558,0.000181,2]
[421548446,1777856226000,-162.45035992,0.00018462,2]
[421548431,1777856226000,-2000.0,0.00018082,2]
[421548432,1777856226000,-2000.0,0.00018082,2]
[421548434,1777856226000,-2000.0,0.00018082,2]
[421548435,1777856226000,-2000.0,0.00018082,2]
[421548433,1777856226000,-2000.0,0.00018082,2]
[421548490,1777856227000,-246.0,0.00019148,2]
[421548496,1777856227000,-150.0,0.00019156,2]
[421548489,1777856227000,-1080.0,0.00019122,2]
[421548487,1777856227000,-1250.0,0.00019122,2]
[421548492,1777856227000,-5000.0,0.00019152,2]
[421548493,1777856227000,-150.0,0.00019156,2]
[421548495,1777856227000,-150.0,0.00019156,2]
[421548497,1777856227000,-150.0,0.00019156,2]
[421548502,1777856227000,-150.0,0.00019178,2]
[421548499,1777856227000,-182.0,0.00019156,2]
[421548498,1777856227000,-150.0,0.00019156,2]
[421548500,1777856227000,-150.0,0.00019178,2]
[421548501,1777856227000,-150.0,0.00019178,2]
[421548503,1777856227000,-191.86814021,0.00019178,2]
[421548504,1777856227000,-250.0,0.00019178,2]
[421548491,1777856227000,-226.0,0.00019148,2]
[421548494,1777856227000,-150.0,0.00019156,2]
[421548488,1777856227000,-1250.0,0.00019122,2]
[421548475,1777856227000,-260.16482673,0.00019016,2]
[421548486,1777856227000,-1250.0,0.00019122,2]
[421548506,1777856227000,-250.0,0.00019178,2]
[421548469,1777856227000,-150.0,0.00018986,2]
[421548472,1777856227000,-174.0,0.00018986,2]
[421548474,1777856227000,-1497.1679168,0.00019,2]
[421548471,1777856227000,-150.0,0.00018986,2]
[421548473,1777856227000,-5221.28804812,0.00019,2]
[421548470,1777856227000,-150.0,0.00018986,2]
[421548485,1777856227000,-1250.0,0.00019122,2]
[421548476,1777856227000,-168.78,0.00019024,2]
[421548480,1777856227000,-1250.0,0.00019122,2]
[421548482,1777856227000,-1250.0,0.00019122,2]
[421548478,1777856227000,-2400.0,0.00019119,2]
[421548477,1777856227000,-168.8,0.00019024,2]
[421548481,1777856227000,-1250.0,0.00019122,2]
[421548483,1777856227000,-1250.0,0.00019122,2]
[421548484,1777856227000,-1250.0,0.00019122,2]
[421548479,1777856227000,-900.0,0.00019119,7]
[421548505,1777856227000,-250.0,0.00019178,2]
[421548536,1777856227000,-592.069141,0.00019178,2]
[421548509,1777856227000,-5233.573485,0.00019178,2]
[421548530,1777856227000,-197.055421,0.00019178,2]
[421548544,1777856227000,-592.069141,0.00019178,2]
[421548535,1777856227000,-592.069141,0.00019178,2]
[421548534,1777856227000,-197.055421,0.00019178,2]
[421548531,1777856227000,-197.055421,0.00019178,2]
[421548529,1777856227000,-197.055421,0.00019178,2]
[421548532,1777856227000,-197.055421,0.00019178,2]
[421548528,1777856227000,-197.055421,0.00019178,2]
[421548533,1777856227000,-197.055421,0.00019178,2]
[421548538,1777856227000,-592.069141,0.00019178,2]
[421548539,1777856227000,-592.069141,0.00019178,2]
[421548540,1777856227000,-592.069141,0.00019178,2]
[421548542,1777856227000,-592.069141,0.00019178,2]
[421548541,1777856227000,-592.069141,0.00019178,2]
[421548545,1777856227000,-592.069141,0.00019178,2]
[421548543,1777856227000,-592.069141,0.00019178,2]
[421548537,1777856227000,-592.069141,0.00019178,2]
[421548527,1777856227000,-197.055421,0.00019178,2]
[421548507,1777856227000,-259.58565625,0.00019178,2]
[421548526,1777856227000,-197.055421,0.00019178,2]
[421548525,1777856227000,-197.055421,0.00019178,2]
[421548510,1777856227000,-5233.573485,0.00019178,2]
[421548508,1777856227000,-5233.573485,0.00019178,2]
[421548512,1777856227000,-500.0,0.00019178,2]
[421548515,1777856227000,-500.0,0.00019178,2]
[421548513,1777856227000,-500.0,0.00019178,2]
[421548514,1777856227000,-500.0,0.00019178,2]
[421548516,1777856227000,-500.0,0.00019178,2]
[421548511,1777856227000,-5233.573485,0.00019178,2]
[421548519,1777856227000,-500.0,0.00019178,2]
[421548518,1777856227000,-500.0,0.00019178,2]
[421548520,1777856227000,-500.0,0.00019178,2]
[421548524,1777856227000,-197.055421,0.00019178,2]
[421548522,1777856227000,-20349.29,0.00019178,2]
[421548523,1777856227000,-197.055421,0.00019178,2]
[421548521,1777856227000,-500.0,0.00019178,2]
[421548517,1777856227000,-500.0,0.00019178,2]
[421548566,1777856228000,-151.0,0.00019178,2]
[421548563,1777856228000,-175.971668,0.00017534,2]
[421548567,1777856228000,-151.0,0.00019178,2]
[421548569,1777856228000,-151.0,0.00019178,2]
[421548568,1777856228000,-151.0,0.00019178,2]
[421548571,1777856228000,-151.0,0.00019178,2]
[421548575,1777856228000,-1497.1679168,0.000192,2]
[421548572,1777856228000,-176.75690271,0.00019178,2]
[421548573,1777856228000,-1740.20210818,0.00019178,2]
[421548574,1777856228000,-500.0,0.000192,7]
[421548577,1777856228000,-200.0,0.00019224,2]
[421548578,1777856228000,-200.0,0.00019224,2]
[421548565,1777856228000,-151.0,0.00019178,2]
[421548570,1777856228000,-151.0,0.00019178,2]
[421548562,1777856228000,-175.971668,0.00017534,2]
[421548554,1777856228000,-1116.17512054,0.00019178,2]
[421548560,1777856228000,-175.971668,0.00015,2]
[421548546,1777856228000,-592.069141,0.00019178,2]
[421548547,1777856228000,-1255.66033016,0.00019178,2]
[421548548,1777856228000,-599.70662562,0.00019178,2]
[421548549,1777856228000,-150.0,0.00019178,2]
[421548550,1777856228000,-1000.0,0.00019178,2]
[421548551,1777856228000,-1222.50660916,0.00019178,2]
[421548564,1777856228000,-175.971668,0.00017534,2]
[421548552,1777856228000,-305.84407428,0.00019178,2]
[421548553,1777856228000,-3000.0,0.00019178,2]
[421548555,1777856228000,-1254.41808677,0.00019178,2]
[421548556,1777856228000,-176.0,0.00012459,2]
[421548558,1777856228000,-175.971668,0.00015,2]
[421548561,1777856228000,-175.971668,0.00015,2]
[421548557,1777856228000,-175.971668,0.00015,2]
[421548576,1777856228000,-694.66,0.000192,2]
[421548579,1777856228000,-200.0,0.00019224,2]
[421548559,1777856228000,-175.971668,0.00015,2]
[421548583,1777856228000,-200.0,0.00019224,2]
[421548600,1777856228000,-199.25,0.00019658,2]
[421548599,1777856228000,-231.53825,0.00019651,2]
[421548603,1777856228000,-276.153103,0.00019702,2]
[421548605,1777856228000,-250.0,0.00019726,2]
[421548607,1777856228000,-151.0,0.00019825,2]
[421548606,1777856228000,-1497.1679168,0.000198,2]
[421548601,1777856228000,-150.0,0.00019666,2]
[421548604,1777856228000,-3500.0,0.00019726,2]
[421548613,1777856228000,-2359.16859906,0.0001987,2]
[421548612,1777856228000,-609.784095,0.00019825,2]
[421548609,1777856228000,-609.784095,0.00019825,2]
[421548614,1777856228000,-655.81395274,0.0001997,2]
[421548580,1777856228000,-200.0,0.00019224,2]
[421548610,1777856228000,-609.784095,0.00019825,2]
[421548608,1777856228000,-151.0,0.00019825,2]
[421548602,1777856228000,-231.538251,0.00019668,2]
[421548611,1777856228000,-609.784095,0.00019825,2]
[421548597,1777856228000,-1497.1679168,0.000196,2]
[421548581,1777856228000,-200.0,0.00019224,2]
[421548598,1777856228000,-150.0,0.00019649,2]
[421548584,1777856228000,-200.0,0.00019224,2]
[421548586,1777856228000,-186.0,0.00019224,2]
[421548582,1777856228000,-200.0,0.00019224,2]
[421548589,1777856228000,-1149.0,0.0001929,2]
[421548588,1777856228000,-276.0,0.0001929,2]
[421548587,1777856228000,-176.0,0.0001929,2]
[421548590,1777856228000,-1497.1679168,0.000194,2]